fUST/lending_fUST_20260302
["ID","MTS","AMOUNT","RATE_DAILY","PERIOD"]
[407048624,1772457038377,-300.0,0.00012556,2]
[407048626,1772457038387,-300.0,0.00012556,2]
[407048629,1772457038396,-300.0,0.00012556,2]
[407048631,1772457038406,-300.0,0.00012556,2]
[407048633,1772457038416,-300.0,0.00012556,2]
[407048634,1772457038426,-300.0,0.00012556,2]
[407048637,1772457038436,-300.0,0.00012556,2]
[407048639,1772457038446,-600.0,0.00012806,2]
[407048641,1772457038456,-383.23057,0.00013264,2]
[407048643,1772457038466,-500.0,0.00013273,2]
[407048644,1772457038475,-500.0,0.00013273,2]
[407048646,1772457038485,-215.24125545,0.00013273,2]
[407048648,1772457038495,-485.4264839,0.00013273,2]
[407048650,1772457038505,-500.0,0.00013273,2]
[407048652,1772457038515,-500.0,0.00013273,2]
[407048654,1772457038525,-500.0,0.00013273,2]
[407048656,1772457038535,-500.0,0.00013273,2]
[407048659,1772457038551,-500.0,0.00013273,2]
[407048661,1772457038561,-500.0,0.00013273,2]
[407048682,1772457038777,-193.0,0.00013323,2]
[407048683,1772457038800,-177.0,0.00013406,2]
[407048684,1772457038811,-904.2829602,0.000135,2]
[407048685,1772457038821,-968.76929885,0.000135,2]
[407048686,1772457038830,-2112.13244871,0.00013597,2]
[407048687,1772457038840,-300.0,0.00013673,2]
[407048688,1772457038853,-209.9972449,0.00013695,2]
[407048689,1772457038862,-500.0,0.00013695,2]
[407048690,1772457038871,-500.0,0.00013695,2]
[407048691,1772457038880,-500.0,0.00013695,2]
[407048692,1772457038889,-500.0,0.00013695,2]
[407048693,1772457038898,-313.34912534,0.00013695,2]
[407048694,1772457038907,-428.05573577,0.00013695,2]
[407048695,1772457038916,-362.76897464,0.00013695,2]
[407048696,1772457038924,-500.0,0.00013695,2]
[407048697,1772457038933,-499.9768932,0.00013695,2]
[407048698,1772457038942,-1500.0,0.00013697,2]
[407048699,1772457038951,-1500.0,0.00013697,2]
[407048700,1772457038961,-1500.0,0.00013697,2]
[407048701,1772457038970,-1500.0,0.00013697,2]
[407048702,1772457038977,-1500.0,0.00013697,2]
[407048703,1772457038985,-1500.0,0.00013697,2]
[407048704,1772457038993,-1500.0,0.00013697,2]
[407048705,1772457039001,-1500.0,0.00013697,2]
[407048706,1772457039011,-1500.0,0.00013697,2]
[407048707,1772457039020,-1500.0,0.00013697,2]
[407048708,1772457039029,-1500.0,0.00013697,2]
[407048709,1772457039038,-1500.0,0.00013697,2]
[407048710,1772457039048,-1500.0,0.00013697,2]
[407048711,1772457039058,-1500.0,0.00013697,2]
[407048712,1772457039067,-1500.0,0.00013697,2]
[407048713,1772457039077,-328.65050193,0.00013697,2]
[407049378,1772457046214,-1171.34949807,0.00013697,2]
[407049379,1772457046224,-1500.0,0.00013697,2]
[407049380,1772457046234,-1500.0,0.00013697,2]
[407049381,1772457046244,-1500.0,0.00013697,2]
[407049382,1772457046253,-1500.0,0.00013697,2]
[407049383,1772457046264,-1500.0,0.00013697,2]
[407049385,1772457046274,-1500.0,0.00013697,2]
[407049386,1772457046284,-1319.39050193,0.00013697,2]
[407066450,1772457743050,-250.0,0.00011404,2]
[407066580,1772458232167,-2719.17102561,0.00010735,2]
[407066581,1772458232178,-1200.0,0.00010843,2]
[407066582,1772458232188,-5000.0,0.00010844,2]
[407066583,1772458232198,-511.27376209,0.00010844,2]
[407066584,1772458232209,-60.72623791,0.00010844,2]
[407066585,1772458232223,-150.0,0.00011234,2]
[407066586,1772458232232,-447.0,0.00011927,2]
[407066587,1772458232242,-300.0,0.0001211,2]
[407066588,1772458232252,-300.0,0.0001211,2]
[407066589,1772458232263,-871.77429068,0.00012113,2]
[407066590,1772458232273,-300.0,0.00012353,2]
[407066591,1772458232283,-300.0,0.00012353,2]
[407066592,1772458232293,-300.0,0.00012353,2]
[407066593,1772458232304,-300.0,0.00012353,2]
[407066594,1772458232314,-300.0,0.00012353,2]
[407066595,1772458232324,-300.0,0.00012353,2]
[407066596,1772458232334,-300.0,0.00012353,2]
[407066597,1772458232344,-88.89912907,0.00012353,2]
[407066598,1772458232356,-211.10087093,0.00012353,2]
[407066599,1772458232367,-149.58516603,0.00012353,2]
[407066600,1772458232387,-150.41483397,0.00012353,2]
[407066601,1772458232396,-300.0,0.00012353,2]
[407066602,1772458232406,-190.2248286,0.00012353,2]
[407066608,1772458238485,-109.7751714,0.00012353,2]
[407066609,1772458238495,-300.0,0.00012353,2]
[407066610,1772458238505,-300.0,0.00012353,2]
[407066611,1772458238515,-300.0,0.00012353,2]
[407066612,1772458238524,-300.0,0.00012353,2]
[407066613,1772458238534,-152.996566,0.00013089,2]
[407066614,1772458238544,-177.0,0.00013234,2]
[407066615,1772458238554,-376.10087164,0.00013265,2]
[407066616,1772458238564,-218.72359818,0.00013273,2]
[407066617,1772458238573,-500.0,0.00013273,2]
[407066618,1772458238583,-500.0,0.00013273,2]
[407066619,1772458238592,-500.0,0.00013273,2]
[407066620,1772458238602,-500.0,0.00013273,2]
[407066621,1772458238611,-268.98906031,0.00013273,2]
[407066622,1772458238646,-231.01093969,0.00013273,2]
[407066623,1772458238656,-500.0,0.00013273,2]
[407066624,1772458238665,-500.0,0.00013273,2]
[407066625,1772458238675,-500.0,0.00013273,2]
[407066626,1772458238684,-500.23224618,0.00013273,2]
[407066627,1772458238694,-528.81009643,0.00013273,2]
[407066628,1772458238703,-500.0,0.00013273,2]
[407066629,1772458238712,-606.54630884,0.00013273,2]
[407066630,1772458238722,-500.0,0.00013273,2]
[407066631,1772458238731,-500.0,0.00013273,2]
[407066632,1772458238755,-420.0,0.00013293,2]
[407066633,1772458238770,-500.0,0.00013458,2]
[407066635,1772458238789,-166.62403,0.00013461,2]
[407066638,1772458238806,-1848.11589263,0.00013461,2]
[407066641,1772458238827,-951.87966823,0.000135,2]
[407066644,1772458238844,-600.0,0.00013537,2]
[407066647,1772458238862,-185.4284621,0.00013553,2]
[407066650,1772458238877,-181.08010149,0.00013553,2]
[407066653,1772458238892,-187.78006525,0.00013553,2]
[407066656,1772458238909,-194.72792766,0.00013553,2]
[407066659,1772458238929,-201.93286099,0.00013553,2]
[407066661,1772458238944,-209.40437684,0.00013553,2]
[407066664,1772458238957,-217.15233878,0.00013553,2]
[407066667,1772458238976,-225.18697532,0.00013553,2]
[407066669,1772458238991,-233.51889341,0.00013553,2]
[407066672,1772458239008,-242.15909246,0.00013553,2]
[407066674,1772458239020,-251.11897888,0.00013553,2]
[407066677,1772458239040,-260.4103811,0.00013553,2]
[407066680,1772458239055,-270.0455652,0.00013553,2]
[407066682,1772458239069,-280.03725112,0.00013553,2]
[407066685,1772458239084,-410.46190662,0.00013553,2]
[407066688,1772458239098,-371.18843123,0.0001356,2]
[407066690,1772458239113,-217317.96597916,0.00013561,2]
[407066855,1772458241036,-1.13835424,0.00013561,2]
[407067362,1772458246309,-1356.31,0.00012329,2]
[407067363,1772458246319,-500.0,0.00013458,2]
[407067365,1772458246328,-500.0,0.00013458,2]
[407067367,1772458246337,-500.0,0.00013458,2]
[407067369,1772458246347,-500.0,0.00013458,2]
[407067371,1772458246357,-500.0,0.00013458,2]
[407067373,1772458246367,-500.0,0.00013458,2]
[407067375,1772458246376,-500.0,0.00013458,2]
[407067377,1772458246386,-500.0,0.00013458,2]
[407067379,1772458246396,-500.0,0.00013458,2]
[407067381,1772458246405,-500.0,0.00013458,2]
[407067382,1772458246415,-500.0,0.00013458,2]
[407067384,1772458246425,-500.0,0.00013458,2]
[407067386,1772458246435,-500.0,0.00013458,2]
[407067388,1772458246445,-500.0,0.00013458,2]
[407067390,1772458246454,-500.0,0.00013458,2]
[407067392,1772458246463,-500.0,0.00013458,2]
[407067394,1772458246474,-500.0,0.00013458,2]
[407067396,1772458246485,-500.0,0.00013458,2]
[407067398,1772458246494,-500.0,0.00013458,2]
[407067400,1772458246504,-500.0,0.00013458,2]
[407067402,1772458246513,-500.0,0.00013458,2]
[407067404,1772458246523,-500.0,0.00013458,2]
[407067406,1772458246532,-500.0,0.00013458,2]
[407067408,1772458246541,-368.43543756,0.00013458,2]
[407067411,1772458246550,-500.0,0.00013458,2]
[407067414,1772458246560,-500.0,0.00013458,2]
[407067417,1772458246570,-500.0,0.00013458,2]
[407067420,1772458246579,-500.0,0.00013458,2]
[407067423,1772458246589,-18735.71990224,0.00013561,2]
[407068936,1772458262079,-1130.26,0.00012329,2]
[407068940,1772458262107,-1130.26,0.00013425,2]
[407068942,1772458262123,-1954.03175406,0.00013425,2]
[407084194,1772458562447,180.008319,5.859e-05,2]
[407084208,1772458683518,232.74,8.991e-05,2]
[407084332,1772458997199,-2000.0,0.00011483,2]
[407084333,1772458998631,-2000.0,0.00011483,2]
[407084334,1772458999410,-1000.0,0.00011483,2]
[407084336,1772459005212,1000.0,0.000115,2]
[407084337,1772459005238,2000.0,0.000115,2]
[407084338,1772459005262,2000.0,0.000115,2]
[407084339,1772459014562,-2000.0,0.000115,2]
[407084340,1772459015857,-302.11,0.000115,2]
[407084341,1772459015881,-150.0,0.00011541,2]
[407084342,1772459027356,1272.65322933,0.0001157,2]
[407084419,1772459141639,-208.91122613,0.00011383,2]
[407084420,1772459141664,-91.08877387,0.00011483,2]
[407084599,1772459432318,-2655.342,0.00011368,2]
[407084600,1772459432330,-800.08576576,0.00011368,2]
[407084601,1772459432343,-1544.57223424,0.00011368,2]
[407084602,1772459432356,-580.0,0.00011368,2]
[407084603,1772459432365,-115.23396467,0.00011541,2]
[407084604,1772459432377,-34.76603533,0.00011541,2]
[407084605,1772459432387,-200.0,0.000116,2]
[407084606,1772459432397,-180.008319,0.00011718,2]
[407084607,1772459432406,-1051.38528554,0.00011828,2]
[407084697,1772459439166,-5000.0,0.0001171,2]
[407084702,1772459439201,-148.61471446,0.00011828,2]
[407084704,1772459439210,-300.0,0.00011829,2]
[407084706,1772459439219,-300.0,0.00011829,2]
[407084708,1772459439229,-300.0,0.00011829,2]
[407084709,1772459439239,-500.0,0.0001183,2]
[407084711,1772459439248,-500.0,0.0001183,2]
[407084714,1772459439258,-500.0,0.0001183,2]
[407084715,1772459439267,-500.0,0.0001183,2]
[407084718,1772459439277,-500.0,0.0001183,2]
[407084720,1772459439287,-500.0,0.0001183,2]
[407084721,1772459439296,-500.0,0.0001183,2]
[407084724,1772459439306,-500.0,0.0001183,2]
[407084726,1772459439315,-500.0,0.0001183,2]
[407084727,1772459439325,-500.0,0.0001183,2]
[407084729,1772459439336,-500.0,0.0001183,2]
[407084732,1772459439349,-500.0,0.0001183,2]
[407084733,1772459439359,-500.0,0.0001183,2]
[407084735,1772459439368,-558.18179906,0.0001183,2]
[407084737,1772459439379,-500.0,0.0001183,2]
[407084739,1772459439389,-500.0,0.0001183,2]
[407084742,1772459439398,-500.0,0.0001183,2]
[407084743,1772459439408,-49.16872617,0.0001183,2]
[407084746,1772459439423,-450.83127383,0.0001183,2]
[407084748,1772459439433,-367.25305905,0.0001183,2]
[407084750,1772459439443,-2668.03890903,0.00011831,2]
[407084753,1772459439463,-1359.0,0.00011831,2]
[407084925,1772459441168,-3324.51136951,0.00011831,2]
[407084927,1772459441179,-1173.95140673,0.00011831,2]
[407084929,1772459441191,-5725.70382518,0.00011831,2]
[407084932,1772459441201,-300.0,0.00011831,2]
[407084933,1772459441210,-300.0,0.00011831,2]
[407084935,1772459441219,-300.0,0.00011831,2]
[407084938,1772459441228,-300.0,0.00011831,2]
[407084940,1772459441238,-300.0,0.00011831,2]
[407084942,1772459441247,-300.0,0.00011831,2]
[407084943,1772459441258,-300.0,0.00011831,2]
[407084946,1772459441268,-300.0,0.00011831,2]
[407084947,1772459441278,-300.0,0.00011831,2]
[407084949,1772459441290,-300.0,0.00011831,2]
[407084951,1772459441303,-300.0,0.00011831,2]
[407084953,1772459441312,-300.0,0.00011831,2]
[407084955,1772459441322,-300.0,0.00011831,2]
[407084957,1772459441331,-300.0,0.00011831,2]
[407084959,1772459441341,-300.0,0.00011831,2]
[407084961,1772459441353,-500.0,0.00012327,2]
[407084963,1772459441362,-185.89617505,0.00012327,2]
[407084967,1772459441387,-314.10382495,0.00012327,2]
[407084969,1772459441396,-502.19837557,0.00012327,2]
[407084971,1772459441406,-500.0,0.00012327,2]
[407084973,1772459441417,-500.0,0.00012327,2]
[407084975,1772459441427,-61.69779948,0.00012329,2]
[407084988,1772459441542,-478.77819423,0.00012329,2]
[407085167,1772459443642,-401.40400629,0.00012329,2]
[407085169,1772459443652,-456.07784298,0.00012329,2]
[407085449,1772459446510,-328.82215702,0.00012329,2]
[407085451,1772459446519,-654.08,0.00012329,2]
[407085453,1772459446529,-545.07,0.00012329,2]
[407085455,1772459446538,-454.23,0.00012329,2]
[407085457,1772459446548,-378.52,0.00012329,2]
[407085459,1772459446558,-315.43,0.00012329,2]
[407085461,1772459446568,-262.86,0.00012329,2]
[407085463,1772459446577,-219.05,0.00012329,2]
[407085465,1772459446586,-182.54,0.00012329,2]
[407085467,1772459446596,-152.12,0.00012329,2]
[407085469,1772459446606,-760.63,0.00012329,2]
[407085471,1772459446615,-319.358808,0.00012539,2]
[407085473,1772459446625,-600.0,0.00012572,2]
[407085475,1772459446634,-410.59356208,0.00012601,2]
[407085478,1772459446654,-89.40643792,0.00012601,2]
[407085480,1772459446663,-500.0,0.00012875,2]
[407085482,1772459446673,-342.0,0.00012988,2]
[407085484,1772459446682,-500.7,0.00013,2]
[407085486,1772459446691,-1200.0,0.00013011,2]
[407085488,1772459446701,-181.08010149,0.00013012,2]
[407085490,1772459446710,-187.78006525,0.00013012,2]
[407085492,1772459446720,-166.04385357,0.00013012,2]
[407085494,1772459446729,-500.0,0.00013012,2]
[407085496,1772459446739,-381.57532291,0.00013012,2]
[407085498,1772459446748,-500.0,0.00013012,2]
[407085500,1772459446757,-500.0,0.00013012,2]
[407085502,1772459446766,-500.0,0.00013012,2]
[407085504,1772459446775,-500.0,0.00013012,2]
[407085506,1772459446785,-500.0,0.00013012,2]
[407085508,1772459446794,-500.0,0.00013012,2]
[407085510,1772459446803,-500.0,0.00013012,2]
[407085512,1772459446814,-319.358808,0.00013067,2]
[407085514,1772459446825,-454.7864973,0.00013089,2]
[407085516,1772459446836,-500.0,0.00013149,2]
[407085518,1772459446847,-500.0,0.00013273,2]
[407085520,1772459446857,-543.2941076,0.00013273,2]
[407085522,1772459446867,-500.40128535,0.00013273,2]
[407085524,1772459446877,-500.0,0.00013273,2]
[407085526,1772459446886,-500.0,0.00013273,2]
[407085528,1772459446896,-318.20166982,0.00013273,2]
[407085530,1772459446906,-163.60834694,0.00013273,2]
[407085532,1772459446915,-500.0,0.00013273,2]
[407085534,1772459446925,-500.0,0.00013273,2]
[407085536,1772459446934,-393.1528219,0.00013273,2]
[407085538,1772459446945,-551.32961373,0.00013273,2]
[407085540,1772459446954,-500.0,0.00013273,2]
[407085542,1772459446963,-500.0,0.00013273,2]
[407085544,1772459446973,-500.0,0.00013273,2]
[407085546,1772459446982,-479.12965656,0.00013273,2]
[407085548,1772459446991,-500.0,0.00013273,2]
[407085550,1772459447001,-221.02440063,0.00013273,2]
[407085552,1772459447013,-274.58600026,0.00013273,2]
[407085555,1772459447023,-500.0,0.00013273,2]
[407085556,1772459447032,-500.0,0.00013273,2]
[407085558,1772459447041,-160.38993862,0.00013273,2]
[407085560,1772459447051,-500.0,0.00013273,2]
[407085563,1772459447061,-500.0,0.00013273,2]
[407085565,1772459447070,-151.0,0.00013402,2]
[407085566,1772459447079,-151.958951,0.00013402,2]
[407085569,1772459447089,-256.0979292,0.00013482,2]
[407085571,1772459447100,-177.0,0.00013541,2]
[407085573,1772459447110,-188.21700371,0.0001356,2]
[407085575,1772459447119,-440.96539318,0.0001356,2]
[407085577,1772459447130,-14556.13011464,0.00013561,2]
[407104114,1772460063160,-472.91410051,0.00012761,2]
[407104141,1772460484477,162.92,8.991e-05,2]
[407104142,1772460543121,200.0,0.0001,2]
[407104175,1772460631522,-2711.43230879,0.00011735,2]
[407104177,1772460631533,-2288.56769121,0.00011735,2]
[407104179,1772460631543,-300.0,0.00011854,2]
[407104181,1772460631552,-5000.0,0.00011855,2]
[407104183,1772460631562,-264.54345744,0.00011855,2]
[407104185,1772460631572,-322.45654256,0.00011855,2]
[407104187,1772460631582,-1603.17410051,0.00012014,2]
[407104189,1772460631591,-150.0,0.00012075,2]
[407104191,1772460631601,-300.0,0.00012134,2]
[407104193,1772460631611,-300.0,0.00012134,2]
[407104195,1772460631620,-1200.0,0.00012134,2]
[407104197,1772460631630,-318.56638154,0.00012232,2]
[407104199,1772460631639,-364.07586462,0.00012232,2]
[407104201,1772460631650,-568.29966993,0.00012232,2]
[407104219,1772460631659,-233.3302721,0.00012874,2]
[407104223,1772460631851,-645.56302293,0.00012874,2]
[407104225,1772460631862,-6.35398363,0.00012874,2]
[407104227,1772460631873,-313.52601637,0.00012874,2]
[407104231,1772460631896,-81.82751686,0.00012874,2]
[407104233,1772460631906,-500.0,0.00012874,2]
[407104235,1772460631915,-500.0,0.00012874,2]
[407104237,1772460631925,-500.0,0.00012874,2]
[407104239,1772460631936,-500.0,0.00012874,2]
[407104241,1772460631946,-500.0,0.00012874,2]
[407104243,1772460631954,-342.23152109,0.00012874,2]
[407104245,1772460631970,-157.76847891,0.00012874,2]
[407104247,1772460631979,-500.0,0.00012874,2]
[407104249,1772460631988,-500.0,0.00012874,2]
[407104251,1772460631997,-443.68708751,0.00012874,2]
[407104253,1772460632007,-500.0,0.00012874,2]
[407104255,1772460632017,-500.0,0.00012874,2]
[407104257,1772460632027,-500.0,0.00012874,2]
[407104259,1772460632036,-423.43078792,0.00012875,2]
[407104261,1772460632046,-469.40635863,0.0001299,2]
[407104263,1772460632057,-150.0,0.00013097,2]
[407104265,1772460632070,-178.662,0.00013271,2]
[407104267,1772460632079,-500.0,0.00013273,2]
[407104269,1772460632089,-500.0,0.00013273,2]
[407104271,1772460632098,-513.63309182,0.00013273,2]
[407104273,1772460632109,-500.0,0.00013273,2]
[407104275,1772460632118,-500.0,0.00013273,2]
[407104277,1772460632127,-500.0,0.00013273,2]
[407104279,1772460632136,-500.0,0.00013273,2]
[407104281,1772460632145,-500.0,0.00013273,2]
[407104283,1772460632154,-500.0,0.00013273,2]
[407104285,1772460632163,-500.0,0.00013273,2]
[407104287,1772460632172,-500.0,0.00013273,2]
[407104289,1772460632182,-420.0,0.00013319,2]
[407104291,1772460632191,-573.21082648,0.000135,2]
[407104293,1772460632200,-308.67577523,0.00013559,2]
[407104294,1772460632209,-151.0,0.0001356,2]
[407104296,1772460632219,-151.339175,0.0001356,2]
[407104298,1772460632228,-2710.53809782,0.0001356,2]
[407104355,1772460638334,-920.61439222,0.0001197,2]
[407104664,1772460642711,-4079.38560778,0.0001197,2]
[407104666,1772460642721,-300.0,0.00012091,2]
[407104668,1772460642730,-300.0,0.00012091,2]
[407104669,1772460642739,-300.0,0.00012091,2]
[407104671,1772460642750,-300.0,0.00012091,2]
[407104674,1772460642759,-300.0,0.00012091,2]
[407104675,1772460642769,-300.0,0.00012091,2]
[407104677,1772460642779,-300.0,0.00012091,2]
[407104680,1772460642788,-300.0,0.00012091,2]
[407104681,1772460642797,-6289.46190218,0.0001356,2]
[407104684,1772460642808,-3072.52833321,0.0001356,2]
[407104686,1772460642819,-2021.30552104,0.0001356,2]
[407104971,1772460645587,-5000.0,0.0001185,2]
[407104973,1772460645597,-3906.16614575,0.0001356,2]
[407104975,1772460645606,-9000.0,0.0001356,2]
[407104977,1772460645615,-6017.90695751,0.0001356,2]
[407104988,1772460645711,-2982.09304249,0.0001356,2]
[407104990,1772460645720,-9000.0,0.0001356,2]
[407104992,1772460645730,-9000.0,0.0001356,2]
[407104994,1772460645739,-9000.0,0.0001356,2]
[407104996,1772460645750,-3000.0,0.0001356,2]
[407104998,1772460645759,-3000.0,0.0001356,2]
[407105000,1772460645769,-3000.0,0.0001356,2]
[407105002,1772460645779,-3000.0,0.0001356,2]
[407105004,1772460645788,-3000.0,0.0001356,2]
[407105006,1772460645797,-3000.0,0.0001356,2]
[407105007,1772460645807,-3000.0,0.0001356,2]
[407105009,1772460645816,-3000.0,0.0001356,2]
[407105013,1772460645826,-3000.0,0.0001356,2]
[407105015,1772460645835,-2279.68918764,0.0001356,2]
[407107564,1772461183199,180.008319,5.677e-05,2]
[407107575,1772461427257,5000.0,0.0001001,2]
[407107576,1772461436505,2719.17102561,0.0001001,2]
[407107646,1772461831795,-3858.66453167,0.00010167,2]
[407107647,1772461831807,-743.64539563,0.00010167,2]
[407107648,1772461831817,-562.0,0.00010167,2]
[407107649,1772461831827,-150.0,0.00010245,2]
[407107650,1772461831842,-1200.0,0.00010799,2]
[407107651,1772461831852,-500.0,0.000108,2]
[407107652,1772461831862,-996.88894534,0.000108,2]
[407107653,1772461831873,-212.905872,0.00010989,2]
[407107654,1772461831883,-300.0,0.00011005,2]
[407107655,1772461831892,-105.63723563,0.00011006,2]
[407107656,1772461831903,-194.36276437,0.00011006,2]
[407107657,1772461831912,-1452.05643707,0.00011014,2]
[407107706,1772461838057,-3750.03809953,0.00011014,2]
[407107917,1772461840585,-11804.08078894,0.00011014,2]
[407107920,1772461840615,-1125.34589103,0.00011014,2]
[407107923,1772461840634,-583.00675459,0.00011014,2]
[407108164,1772461843172,-7564.04153964,0.00011014,2]
[407108170,1772461843220,-989.01004704,0.00011014,2]
[407108254,1772461844051,-1712.45079201,0.00011014,2]
[407108433,1772461845863,-571.36549983,0.00011014,2]
[407108435,1772461845873,-500.0,0.00011014,2]
[407108437,1772461845882,-500.0,0.00011014,2]
[407108439,1772461845891,-500.0,0.00011014,2]
[407108441,1772461845900,-500.0,0.00011014,2]
[407108443,1772461845910,-500.0,0.00011014,2]
[407108445,1772461845920,-500.0,0.00011014,2]
[407108447,1772461845930,-500.0,0.00011014,2]
[407108449,1772461845940,-500.0,0.00011014,2]
[407108451,1772461845949,-320.0112945,0.00011014,2]
[407108452,1772461845959,-500.0,0.00011014,2]
[407108454,1772461845967,-160.40967639,0.00011014,2]
[407108456,1772461845977,-272.15138105,0.00011014,2]
[407108458,1772461845987,-500.75000455,0.00011014,2]
[407108460,1772461845996,-300.0,0.00011015,2]
[407108462,1772461846005,-300.0,0.00011015,2]
[407108464,1772461846016,-300.0,0.00011015,2]
[407108466,1772461846026,-300.0,0.00011015,2]
[407108468,1772461846036,-300.0,0.00011015,2]
[407108470,1772461846046,-300.0,0.00011015,2]
[407108472,1772461846057,-300.0,0.00011015,2]
[407108474,1772461846068,-300.0,0.00011015,2]
[407108476,1772461846078,-300.0,0.00011015,2]
[407108478,1772461846087,-300.0,0.00011015,2]
[407108480,1772461846098,-300.0,0.00011015,2]
[407108482,1772461846108,-300.0,0.00011015,2]
[407108484,1772461846117,-300.0,0.00011015,2]
[407108486,1772461846126,-300.0,0.00011015,2]
[407108488,1772461846135,-300.0,0.00011015,2]
[407108490,1772461846146,-212.905872,0.00011451,2]
[407108491,1772461846155,-3145.20877979,0.00011815,2]
[407108493,1772461846166,-1680.0,0.00011879,2]
[407108495,1772461846175,-212.905872,0.00011914,2]
[407108497,1772461846184,-1030.14204946,0.00012036,2]
[407108500,1772461846195,-695.92128685,0.00012036,2]
[407108502,1772461846204,-600.0,0.0001205,2]
[407108503,1772461846213,-311.69019008,0.00012059,2]
[407108505,1772461846223,-420.0,0.00012093,2]
[407108507,1772461846232,-177.0,0.00012245,2]
[407108509,1772461846242,-212.905872,0.00012376,2]
[407108511,1772461846251,-430.0739305,0.00012588,2]
[407108513,1772461846261,-212.905872,0.00012839,2]
[407108515,1772461846271,-939.0,0.00013067,2]
[407108517,1772461846280,-322.9170268,0.0001309,2]
[407108519,1772461846289,-3438.32967701,0.00013174,2]
[407108521,1772461846299,-216.07304266,0.00013238,2]
[407108523,1772461846309,-720.0,0.00013255,2]
[407108525,1772461846319,-636.18154416,0.00013273,2]
[407108527,1772461846328,-500.0,0.00013273,2]
[407108529,1772461846337,-500.0,0.00013273,2]
[407108530,1772461846348,-500.0,0.00013273,2]
[407108533,1772461846359,-500.0,0.00013273,2]
[407108534,1772461846369,-500.0,0.00013273,2]
[407108536,1772461846378,-500.0,0.00013273,2]
[407108538,1772461846388,-500.0,0.00013273,2]
[407108540,1772461846397,-150.0,0.00013288,2]
[407108542,1772461846407,-587.0,0.00013289,2]
[407108544,1772461846417,-212.905872,0.00013302,2]
[407108546,1772461846426,-386.98810478,0.00013559,2]
[407126514,1772462819709,3888.03500567,0.0001001,2]
[407126515,1772462827733,5000.0,0.0001001,2]
[407126702,1772463032048,-1712.45079201,0.00010111,2]
[407126703,1772463032063,-562.0,0.00010111,2]
[407126704,1772463032072,-150.0,0.00010213,2]
[407126705,1772463032082,-783.96739207,0.00011109,2]
[407126706,1772463032093,-622.5237262,0.00011248,2]
[407126707,1772463032104,-300.0,0.00012112,2]
[407126709,1772463032113,-1200.0,0.00012112,2]
[407126710,1772463032123,-2937.88886759,0.00012113,2]
[407126711,1772463032133,-291.14478677,0.00012113,2]
[407126712,1772463032142,-177.0,0.00012213,2]
[407126713,1772463032152,-3324.51136951,0.00012273,2]
[407126714,1772463032162,-786.8968621,0.00012273,2]
[407126715,1772463032172,-857.48,0.00012329,2]
[407126716,1772463032182,-1045.8618052,0.00012329,2]
[407126717,1772463032192,-500.0,0.00013168,2]
[407126718,1772463032202,-334.44412034,0.00013168,2]
[407126719,1772463032212,-500.0,0.00013168,2]
[407126720,1772463032222,-500.0,0.00013168,2]
[407126721,1772463032231,-500.0,0.00013168,2]
[407126722,1772463032241,-65.57931079,0.00013168,2]
[407126723,1772463032252,-434.42068921,0.00013168,2]
[407126724,1772463032262,-500.0,0.00013168,2]
[407126725,1772463032272,-243.955891,0.00013168,2]
[407126726,1772463036343,3337.3655,0.0001001,2]